fUSD/lending_fUSD_20251014
["ID","MTS","AMOUNT","RATE_DAILY","PERIOD"]
[391286981,1760470013189,-9137.82733667,0.00043627,120]
[391286982,1760470013222,-220.92697382,0.0004363,120]
[391286983,1760470013255,-96970.44447982,0.00043633,120]
[391286984,1760470013288,-838.18112973,0.00043639,120]
[391286985,1760470013322,-1023.94514461,0.00043641,120]
[391286986,1760470013359,-220.92697382,0.00043643,120]
[391286987,1760470013393,-257.75274986,0.00043646,120]
[391286988,1760470013425,-643.77452939,0.00043659,120]
[391286989,1760470013457,-42375.79321422,0.00043661,120]
[391286990,1760470013489,-838.18112973,0.00043663,120]
[391286991,1760470013520,-256.92451086,0.00043665,120]
[391286992,1760470013550,-256.92451086,0.00043673,120]
[391286993,1760470013581,-257.75274986,0.00043673,120]
[391286994,1760470013614,-1023.94514461,0.00043677,120]
[391286995,1760470013648,-838.18112973,0.00043679,120]
[391286996,1760470013681,-643.77452939,0.00043681,120]
[391286997,1760470013713,-96970.44447982,0.00043689,120]
[391286998,1760470013744,-257.75274986,0.00043693,120]
[391286999,1760470013774,-152.0,0.000437,120]
[391287000,1760470013805,-96970.44447982,0.00043701,120]
[391287001,1760470013836,-42375.79321422,0.00043706,120]
[391287002,1760470013870,-96970.44447982,0.00043713,120]
[391287003,1760470013902,-198.80622643,0.00043717,120]
[391287004,1760470013935,-9070.45563799,0.00043732,120]
[391287005,1760470013981,-838.18112973,0.00043732,120]
[391287006,1760470014014,-9137.82733667,0.00043738,120]
[391287007,1760470014046,-256.92451086,0.00043751,120]
[391287008,1760470014078,-1023.94514461,0.00043753,120]
[391287009,1760470014110,-198.80622643,0.00043762,120]
[391287010,1760470014153,-7772.30187196,0.00043765,120]
[391287011,1760470014185,-838.18112973,0.00043767,120]
[391287012,1760470014219,-643.77452939,0.00043767,120]
[391287013,1760470014253,-9137.82733667,0.00043767,120]
[391287014,1760470014287,-96970.44447982,0.00043773,120]
[391287015,1760470014319,-257.75274986,0.00043775,120]
[391287016,1760470014355,-7772.30187196,0.00043776,120]
[391287017,1760470014391,-96970.44447982,0.00043781,120]
[391287018,1760470014424,-7772.30187196,0.00043783,120]
[391287019,1760470014458,-838.18112973,0.00043785,120]
[391287020,1760470014491,-9070.45563799,0.00043786,120]
[391287021,1760470014523,-7772.30187196,0.0004379,120]
[391287022,1760470014554,-256.92451086,0.00043791,120]
[391287023,1760470014584,-643.77452939,0.00043792,120]
[391287024,1760470014616,-42375.79321422,0.00043795,120]
[391287025,1760470014646,-11367.7,0.000438,30]
[391287026,1760470014676,-4027.99999901,0.000438,120]
[391287027,1760470014706,-9893.34756715,0.000438,120]
[391287028,1760470014736,-793.37766381,0.000438,120]
[391287029,1760470014766,-494.35308674,0.000438,30]
[391287030,1760470014797,-367649.48284432,0.00043826,30]
[391287032,1760470035529,205.0,9.8e-05,2]
[391287051,1760470147176,1000.0,0.00027397,120]
[391287052,1760470152302,500.0,0.00027397,120]
[391287056,1760470211613,209.38569123,0.0002687,120]
[391287057,1760470212655,209.38569123,0.00024679,120]
[391287076,1760470231624,-738.23,0.00013271,2]
[391287077,1760470231635,-377.9529461,0.00013472,2]
[391287078,1760470231644,-738.23,0.00013673,2]
[391287079,1760470231654,-250.99999984,0.00013699,2]
[391287080,1760470231664,-300.0,0.00013775,2]
[391287081,1760470231674,-300.0,0.00013775,2]
[391287082,1760470231684,-172.44324555,0.00013775,2]
[391287083,1760470231693,-308.55852,0.00014004,2]
[391287084,1760470231703,-738.23,0.00014075,2]
[391287085,1760470231712,-58.57398848,0.00014477,2]
[391287086,1760470231735,-679.65601152,0.00014477,2]
[391287087,1760470231745,-300.0,0.00014597,2]
[391287088,1760470231754,-300.0,0.00014597,2]
[391287089,1760470231764,-1200.0,0.00014597,2]
[391287090,1760470231774,-150.0,0.00014597,2]
[391287091,1760470231784,-1077.68407582,0.00014598,2]
[391287092,1760470231793,-2500.0,0.00014598,2]
[391287093,1760470231803,-383.95182773,0.00014598,2]
[391287094,1760470231812,-167.7698824,0.00014598,2]
[391287137,1760470232287,-300.0,0.00014598,2]
[391287140,1760470232308,-250.0,0.00014598,2]
[391287142,1760470232318,-195.0,0.00014598,2]
[391287145,1760470232337,-1815.42350515,0.00014598,2]
[391287147,1760470232347,-2000.0,0.00014598,2]
[391287149,1760470232358,-738.23,0.00014879,2]
[391287151,1760470232368,-286.42671848,0.000149,2]
[391287153,1760470232382,-290.51248154,0.000149,2]
[391287155,1760470232392,-2108.9420233,0.0001492,2]
[391287157,1760470232402,-282.16,0.00014941,2]
[391287159,1760470232412,-172.70255236,0.00014973,2]
[391287161,1760470232422,-500.0,0.00014973,2]
[391287163,1760470232432,-500.0,0.00014973,2]
[391287165,1760470232442,-500.0,0.00014973,2]
[391287167,1760470232453,-500.0,0.00014973,2]
[391287169,1760470232463,-500.0,0.00014973,2]
[391287171,1760470232474,-312.03527756,0.0001499,2]
[391287173,1760470232483,-307.99813908,0.00014999,2]
[391287175,1760470232493,-236.81502168,0.00014999,2]
[391287177,1760470232503,-666.0,0.00014999,2]
[391287179,1760470232512,-38175.39640989,0.00015,2]
[391287186,1760470232566,-4707.6,0.00015,2]
[391287286,1760470233529,500.0,0.00027397,120]
[391287308,1760470238250,-354.98805534,0.000149,2]
[391287310,1760470238260,-2013.11708719,0.00015,2]
[391287388,1760470239581,-568.5486864,0.00015,2]
[391287389,1760470239727,-547874.05459843,0.00015,2]
[391287391,1760470239989,-2275302.8042433,0.00015,2]
[391287393,1760470239998,-160.0,0.00015,2]
[391287395,1760470240009,-447721.29702988,0.00015,2]
[391287396,1760470240018,-1600.0,0.0001502,2]
[391287397,1760470240027,-2108.94202329,0.00015108,2]
[391287398,1760470240037,-200.0,0.00015108,2]
[391287399,1760470240046,-738.23,0.00015281,2]
[391287401,1760470240055,-150.0,0.0001529,2]
[391287402,1760470240064,-2108.94202329,0.00015296,2]
[391287403,1760470240073,-426.42,0.00015347,2]
[391287404,1760470240084,-5272.14214167,0.000154,2]
[391287405,1760470240093,-1586.21,0.00015408,2]
[391287406,1760470240102,-157.47,0.00015461,2]
[391287407,1760470240111,-2108.94202329,0.00015484,2]
[391287408,1760470240121,-1000.0,0.00015521,2]
[391287409,1760470240130,-1000.0,0.00015521,2]
[391287411,1760470240140,-890.43525146,0.00015521,2]
[391287412,1760470240150,-696.87269476,0.00015521,2]
[391287413,1760470240160,-286.42671844,0.00015602,2]
[391287414,1760470240170,-2108.94202329,0.00015672,2]
[391287415,1760470240180,-255.0,0.00015721,2]
[391287416,1760470240190,-694.95,0.00015741,2]
[391287417,1760470240199,-694.95,0.00015741,2]
[391287418,1760470240209,-474.32,0.00015741,2]
[391287419,1760470240219,-676.16,0.00015741,2]
[391287420,1760470240228,-2209.5225853,0.00015807,2]
[391287421,1760470240238,-2108.94202329,0.0001586,2]
[391287422,1760470240247,-282.0,0.00015982,2]
[391287423,1760470240256,-420.0,0.00015982,2]
[391287424,1760470240267,-2599.54184566,0.00016,2]
[391287425,1760470240276,-258.90574754,0.00016,2]
[391287426,1760470240286,-259.051519,0.00016,2]
[391287427,1760470240295,-948.77,0.00016005,2]
[391287428,1760470240306,-474.58,0.00016005,2]
[391287429,1760470240315,-474.58,0.00016005,2]
[391287430,1760470240325,-474.58,0.00016005,2]
[391287431,1760470240341,-177.23,0.00016005,2]
[391287432,1760470240350,-2108.94202329,0.00016048,2]
[391287433,1760470240359,-694.77,0.00016053,2]
[391287434,1760470240369,-1680.0,0.00016056,2]
[391287435,1760470240381,-1500.0,0.00016068,2]
[391287436,1760470240390,-1500.0,0.00016068,2]
[391287437,1760470240400,-203.0,0.00016076,2]
[391287438,1760470240410,-474.58,0.000161,2]
[391287439,1760470240421,-203.0,0.00016167,2]
[391287440,1760470240430,-203.0,0.00016192,2]
[391287441,1760470240439,-203.0,0.00016196,2]
[391287442,1760470240449,-2700.62931914,0.000162,2]
[391287443,1760470240460,-2108.94202329,0.00016236,2]
[391287444,1760470240470,-151.0,0.0001629,2]
[391287445,1760470240479,-151.0,0.0001629,2]
[391287446,1760470240489,-198.0,0.0001629,2]
[391287447,1760470240499,-474.58,0.000163,2]
[391287448,1760470240508,-474.58,0.000163,2]
[391287449,1760470240517,-4050.4157,0.000163,2]
[391287450,1760470240527,-3716.18591677,0.000163,2]
[391287451,1760470240536,-547.7494617,0.000163,2]
[391287452,1760470240545,-5000.0,0.000163,2]
[391287453,1760470240554,-286.42671844,0.00016304,2]
[391287454,1760470240564,-203.0,0.00016309,2]
[391287455,1760470240573,-157.47,0.0001632,2]
[391287456,1760470240584,-203.0,0.0001633,2]
[391287457,1760470240593,-966.22474041,0.00016338,2]
[391287458,1760470240602,-1531.16424152,0.00016338,2]
[391287459,1760470240611,-181.61025185,0.00016338,2]
[391287460,1760470240621,-254.15492993,0.00016338,2]
[391287461,1760470240631,-4151.84629345,0.00016338,2]
[391287462,1760470240640,-290.51248152,0.0001634,2]
[391287463,1760470240649,-203.0,0.00016361,2]
[391287464,1760470240659,-524.08466937,0.00016372,2]
[391287465,1760470240669,-2124.394,0.00016373,2]
[391287466,1760470240679,-680.15436648,0.00016377,2]
[391287467,1760470240688,-312.03527756,0.0001639,2]
[391287468,1760470240697,-3716.18591676,0.00016396,2]
[391287469,1760470240706,-1201.31606024,0.00016399,5]
[391287470,1760470240715,-56443.872625,0.00016399,2]
[391287471,1760470240724,-162006.62147221,0.000164,2]
[391287478,1760470243048,-354.98805533,0.0001522,2]
[391287479,1760470243060,-506125.4488499,0.000164,2]
[391287480,1760470243072,-151.0,0.000164,2]
[391287481,1760470243084,-159.64980734,0.000164,2]
[391287483,1760470243096,-13672.88017,0.000164,2]
[391287485,1760470243108,-11360.1069509,0.000164,2]
[391287488,1760470243121,-474.58,0.000164,2]
[391287490,1760470243133,-474.58,0.000164,2]
[391287492,1760470243145,-197.0,0.00016422,2]
[391287493,1760470243156,-2108.94202329,0.00016424,2]
[391287494,1760470243169,-14498.46751138,0.00016435,2]
[391287496,1760470243182,-1718.0,0.00016438,2]
[391287497,1760470243193,-172.659396,0.00016438,2]
[391287498,1760470243205,-1002.93,0.00016438,2]
[391287499,1760470243218,-1016.04,0.00016438,2]
[391287500,1760470243231,-1081.97,0.00016438,2]
[391287501,1760470243243,-1270.21,0.00016438,2]
[391287502,1760470243255,-1217.28,0.00016438,2]
[391287503,1760470243267,-1480.48,0.00016438,2]
[391287504,1760470243279,-500.0,0.00016438,2]
[391287505,1760470243291,-1753.61,0.00016438,2]
[391287506,1760470243303,-500.0,0.00016438,2]
[391287507,1760470243316,-500.0,0.00016438,2]
[391287508,1760470243328,-1130.79,0.00016438,2]
[391287509,1760470243341,-535.61,0.00016438,2]
[391287510,1760470243353,-500.0,0.00016438,2]
[391287511,1760470243365,-1367.18,0.00016438,2]
[391287512,1760470243379,-3297.12,0.00016438,2]
[391287513,1760470243392,-898.87,0.00016438,2]
[391287514,1760470243404,-661.15,0.00016438,2]
[391287515,1760470243416,-552.91,0.00016438,2]
[391287516,1760470243428,-500.0,0.00016438,2]
[391287517,1760470243441,-1410.07,0.00016438,2]
[391287518,1760470243455,-500.0,0.00016438,2]
[391287519,1760470243467,-500.0,0.00016438,2]
[391287520,1760470243479,-703.39,0.00016438,2]
[391287521,1760470243491,-1557.16,0.00016438,2]
[391287522,1760470243504,-1047.56,0.00016438,2]
[391287523,1760470243516,-600.5,0.00016438,2]
[391287524,1760470243528,-500.0,0.00016438,2]
[391287525,1760470243540,-891.55,0.00016438,2]
[391287526,1760470243552,-645.01,0.00016438,2]
[391287527,1760470243564,-500.0,0.00016438,2]
[391287528,1760470243576,-902.56,0.00016438,2]
[391287529,1760470243590,-500.0,0.00016438,2]
[391287530,1760470243601,-500.0,0.00016438,2]
[391287531,1760470243613,-1136.29,0.00016438,2]
[391287532,1760470243626,-500.0,0.00016438,2]
[391287533,1760470243639,-500.0,0.00016438,2]
[391287534,1760470243651,-500.0,0.00016438,2]
[391287535,1760470243663,-1029.66,0.00016438,2]
[391287536,1760470243675,-500.0,0.00016438,2]
[391287537,1760470243688,-500.0,0.00016438,2]
[391287538,1760470243700,-1473.97,0.00016438,2]
[391287539,1760470243712,-500.0,0.00016438,2]
[391287540,1760470243724,-1334.03,0.00016438,2]
[391287541,1760470243736,-500.0,0.00016438,2]
[391287542,1760470243749,-1490.74,0.00016438,2]
[391287543,1760470243761,-500.0,0.00016438,2]
[391287544,1760470243773,-500.0,0.00016438,2]
[391287545,1760470243786,-500.0,0.00016438,2]
[391287546,1760470243799,-500.0,0.00016438,2]
[391287547,1760470243812,-789.35,0.00016438,2]
[391287548,1760470243825,-2159.89,0.00016438,2]
[391287549,1760470243836,-612.88,0.00016438,2]
[391287550,1760470243849,-700.37,0.00016438,2]
[391287551,1760470243861,-500.0,0.00016438,2]
[391287552,1760470243873,-883.13,0.00016438,2]
[391287553,1760470243885,-883.13,0.00016438,2]
[391287554,1760470243898,-500.0,0.00016438,2]
[391287555,1760470243910,-1257.2,0.00016438,2]
[391287556,1760470243922,-840.38,0.00016438,2]
[391287557,1760470243935,-1041.65,0.00016438,2]
[391287558,1760470243947,-585.66,0.00016438,2]
[391287559,1760470243959,-500.0,0.00016438,2]
[391287560,1760470243972,-500.0,0.00016438,2]
[391287561,1760470243984,-1639.89,0.00016438,2]
[391287562,1760470243996,-500.0,0.00016438,2]
[391287563,1760470244010,-947.54,0.00016438,2]
[391287564,1760470244023,-500.0,0.00016438,2]
[391287565,1760470244034,-500.0,0.00016438,2]
[391287566,1760470244047,-1563.92,0.00016438,2]
[391287567,1760470244059,-500.0,0.00016438,2]
[391287568,1760470244072,-1905.46,0.00016438,2]
[391287569,1760470244084,-849.33,0.00016438,2]
[391287570,1760470244096,-1251.39,0.00016438,2]
[391287571,1760470244108,-749.46,0.00016438,2]
[391287572,1760470244120,-1114.36,0.00016438,2]
[391287573,1760470244132,-500.0,0.00016438,2]
[391287574,1760470244144,-881.45,0.00016438,2]
[391287575,1760470244156,-500.0,0.00016438,2]
[391287576,1760470244168,-500.0,0.00016438,2]
[391287577,1760470244180,-1652.81,0.00016438,2]
[391287578,1760470244193,-1695.89,0.00016438,2]
[391287579,1760470244206,-500.0,0.00016438,2]
[391287580,1760470244218,-500.0,0.00016438,2]
[391287581,1760470244229,-500.0,0.00016438,2]
[391287582,1760470244242,-500.0,0.00016438,2]
[391287583,1760470244254,-500.0,0.00016438,2]
[391287584,1760470244265,-154.861262,0.00016438,2]
[391287585,1760470244278,-178.001095,0.00016438,2]
[391287586,1760470244290,-500.0,0.00016438,2]
[391287587,1760470244302,-174.843964,0.00016438,2]
[391287588,1760470244313,-500.0,0.00016438,2]
[391287589,1760470244326,-191.008515,0.00016438,2]
[391287590,1760470244338,-153.143197,0.00016438,2]
[391287591,1760470244350,-500.0,0.00016438,2]
[391287592,1760470244362,-150.358223,0.00016438,2]
[391287593,1760470244375,-500.0,0.00016438,2]
[391287594,1760470244390,-1299.76,0.00016438,2]
[391287595,1760470244402,-500.0,0.00016438,2]
[391287596,1760470244414,-500.0,0.00016438,2]
[391287597,1760470244427,-500.0,0.00016438,2]
[391287598,1760470244439,-500.0,0.00016438,2]
[391287599,1760470244451,-500.0,0.00016438,2]
[391287600,1760470244464,-500.0,0.00016438,2]
[391287601,1760470244475,-500.0,0.00016438,2]
[391287602,1760470244488,-500.0,0.00016438,2]
[391287603,1760470244499,-500.0,0.00016438,2]
[391287604,1760470244511,-500.0,0.00016438,2]
[391287605,1760470244523,-500.0,0.00016438,2]
[391287606,1760470244535,-153.498262,0.00016438,2]
[391287607,1760470244546,-588.97,0.00016438,2]
[391287608,1760470244559,-500.0,0.00016438,2]
[391287609,1760470244571,-1000.0,0.00016438,2]
[391287610,1760470244583,-1000.0,0.00016438,2]
[391287611,1760470244599,-1000.0,0.00016438,2]
[391287612,1760470244611,-500.0,0.00016438,2]
[391287613,1760470244624,-1000.0,0.00016438,2]
[391287614,1760470244636,-1000.0,0.00016438,2]
[391287615,1760470244648,-462.627,0.00016438,2]
[391287616,1760470244660,-500.0,0.00016438,2]
[391287617,1760470244671,-500.0,0.00016438,2]
[391287618,1760470244684,-500.0,0.00016438,2]
[391287619,1760470244696,-500.0,0.00016438,2]
[391287620,1760470244708,-500.0,0.00016438,2]
[391287621,1760470244720,-500.0,0.00016438,2]
[391287622,1760470244732,-579.50547927,0.00016438,2]
[391287623,1760470244743,-500.0,0.00016438,2]
[391287624,1760470244756,-500.0,0.00016438,2]
[391287625,1760470244768,-500.0,0.00016438,2]
[391287626,1760470244781,-500.0,0.00016438,2]
[391287627,1760470244793,-500.0,0.00016438,2]
[391287628,1760470244805,-500.0,0.00016438,2]
[391287629,1760470244817,-1947.9,0.00016438,2]
[391287630,1760470244828,-1148.28,0.00016438,2]
[391287631,1760470244843,-500.0,0.00016438,2]
[391287632,1760470244855,-500.0,0.00016438,2]
[391287633,1760470244867,-500.0,0.00016438,2]
[391287634,1760470244879,-500.0,0.00016438,2]
[391287635,1760470244892,-1967.11,0.00016438,2]
[391287636,1760470244905,-500.0,0.00016438,2]
[391287637,1760470244917,-500.0,0.00016438,2]
[391287638,1760470244929,-500.0,0.00016438,2]
[391287639,1760470244941,-1890.01,0.00016438,2]
[391287640,1760470244953,-500.0,0.00016438,2]
[391287641,1760470244965,-500.0,0.00016438,2]
[391287642,1760470244976,-500.0,0.00016438,2]
[391287643,1760470244988,-500.0,0.00016438,2]
[391287644,1760470245000,-500.0,0.00016438,2]
[391287645,1760470245013,-969.98,0.00016438,2]
[391287646,1760470245025,-500.0,0.00016438,2]
[391287647,1760470245038,-609.72,0.00016438,2]
[391287648,1760470245050,-500.0,0.00016438,2]
[391287649,1760470245062,-1095.05,0.00016438,2]
[391287650,1760470245074,-500.0,0.00016438,2]
[391287651,1760470245085,-500.0,0.00016438,2]
[391287652,1760470245100,-1190.56,0.00016438,2]
[391287653,1760470245112,-500.0,0.00016438,2]
[391287654,1760470245124,-500.0,0.00016438,2]
[391287655,1760470245136,-500.0,0.00016438,2]
[391287656,1760470245148,-500.0,0.00016438,2]
[391287657,1760470245160,-500.0,0.00016438,2]
[391287658,1760470245171,-500.0,0.00016438,2]
[391287659,1760470245183,-500.0,0.00016438,2]
[391287660,1760470245195,-500.0,0.00016438,2]
[391287661,1760470245208,-1925.21,0.00016438,2]
[391287662,1760470245220,-500.0,0.00016438,2]
[391287663,1760470245232,-500.0,0.00016438,2]
[391287664,1760470245244,-500.0,0.00016438,2]
[391287665,1760470245257,-500.0,0.00016438,2]
[391287666,1760470245268,-500.0,0.00016438,2]
[391287667,1760470245280,-899.42,0.00016438,2]
[391287668,1760470245292,-151.0,0.00016438,2]
[391287669,1760470245304,-154.00000027,0.00016438,2]
[391287670,1760470245315,-151.0,0.00016438,2]
[391287671,1760470245328,-500.0,0.00016438,2]
[391287672,1760470245341,-151.0,0.00016438,2]
[391287673,1760470245353,-500.0,0.00016438,2]
[391287674,1760470245366,-500.0,0.00016438,2]
[391287675,1760470245381,-500.0,0.00016438,2]
[391287676,1760470245393,-1851.66,0.00016438,2]
[391287677,1760470245404,-500.0,0.00016438,2]
[391287678,1760470245418,-500.0,0.00016438,2]
[391287679,1760470245430,-1662.99,0.00016438,2]
[391287680,1760470245441,-500.0,0.00016438,2]
[391287681,1760470245454,-500.0,0.00016438,2]
[391287682,1760470245466,-500.0,0.00016438,2]
[391287683,1760470245478,-500.0,0.00016438,2]
[391287684,1760470245489,-500.0,0.00016438,2]
[391287685,1760470245501,-643.38,0.00016438,2]
[391287686,1760470245512,-500.0,0.00016438,2]
[391287687,1760470245524,-500.0,0.00016438,2]
[391287689,1760470245536,-500.0,0.00016438,2]
[391287690,1760470245547,-500.0,0.00016438,2]
[391287691,1760470245558,-500.0,0.00016438,2]
[391287692,1760470245567,-500.0,0.00016438,2]
[391287693,1760470245577,-545.59,0.00016438,2]
[391287694,1760470245587,-500.0,0.00016438,2]
[391287695,1760470245596,-500.0,0.00016438,2]
[391287696,1760470245605,-500.0,0.00016438,2]
[391287697,1760470245614,-151.0,0.00016438,2]
[391287698,1760470245623,-151.0,0.00016438,2]
[391287699,1760470245633,-1563.54,0.00016438,2]
[391287700,1760470245643,-153.087027,0.00016438,2]
[391287705,1760470246141,-500.0,0.00016438,2]
[391287706,1760470246165,-500.0,0.00016438,2]
[391287707,1760470246186,-298.17457959,0.00016438,2]
[391287708,1760470246209,-151.0,0.00016438,2]
[391287709,1760470246229,-500.0,0.00016438,2]
[391287710,1760470246249,-500.0,0.00016438,2]
[391287711,1760470246259,-2066.64,0.00016438,2]
[391287712,1760470246268,-151.0,0.00016438,2]
[391287713,1760470246277,-177.657138,0.00016438,2]
[391287714,1760470246286,-639.57,0.00016438,2]
[391287715,1760470246295,-151.0,0.00016438,2]
[391287716,1760470246305,-500.0,0.00016438,2]
[391287717,1760470246314,-1135.3,0.00016438,2]
[391287718,1760470246324,-500.0,0.00016438,2]
[391287719,1760470246334,-151.0,0.00016438,2]
[391287720,1760470246344,-151.0,0.00016438,2]
[391287721,1760470246354,-1788.4,0.00016438,2]
[391287722,1760470246363,-500.0,0.00016438,2]
[391287723,1760470246373,-553.21,0.00016438,2]
[391287724,1760470246387,-574.43,0.00016438,2]
[391287725,1760470246396,-500.0,0.00016438,2]
[391287726,1760470246405,-500.0,0.00016438,2]
[391287727,1760470246414,-500.0,0.00016438,2]
[391287728,1760470246423,-500.0,0.00016438,2]
[391287729,1760470246433,-510.64,0.00016438,2]
[391287730,1760470246442,-500.0,0.00016438,2]
[391287731,1760470246452,-789.67,0.00016438,2]
[391287732,1760470246462,-672.5,0.00016438,2]
[391287733,1760470246472,-500.0,0.00016438,2]
[391287734,1760470246481,-1162.65,0.00016438,2]
[391287735,1760470246490,-500.0,0.00016438,2]
[391287736,1760470246499,-500.0,0.00016438,2]
[391287737,1760470246509,-500.0,0.00016438,2]
[391287738,1760470246518,-585.68,0.00016438,2]
[391287739,1760470246527,-500.0,0.00016438,2]
[391287740,1760470246537,-500.0,0.00016438,2]
[391287741,1760470246546,-631.45,0.00016438,2]
[391287742,1760470246555,-500.0,0.00016438,2]
[391287743,1760470246564,-500.0,0.00016438,2]
[391287744,1760470246573,-623.00698932,0.00016438,2]
[391287745,1760470246582,-1167.34,0.00016438,2]
[391287746,1760470246594,-500.0,0.00016438,2]
[391287747,1760470246603,-151.0,0.00016438,2]
[391287748,1760470246612,-500.0,0.00016438,2]
[391287749,1760470246621,-1847.92,0.00016438,2]
[391287750,1760470246630,-500.0,0.00016438,2]
[391287751,1760470246640,-500.0,0.00016438,2]
[391287752,1760470246648,-500.0,0.00016438,2]
[391287753,1760470246657,-500.0,0.00016438,2]
[391287754,1760470246666,-316.05596898,0.00016438,2]
[391287755,1760470246675,-1532.08,0.00016438,2]
[391287756,1760470246684,-500.0,0.00016438,2]
[391287757,1760470246693,-789.69,0.00016438,2]
[391287758,1760470246702,-500.0,0.00016438,2]
[391287759,1760470246712,-1328.02,0.00016438,2]
[391287760,1760470246721,-1654.08,0.00016438,2]
[391287761,1760470246730,-500.0,0.00016438,2]
[391287762,1760470246739,-634.56,0.00016438,2]
[391287763,1760470246748,-500.0,0.00016438,2]
[391287764,1760470246757,-906.08,0.00016438,2]
[391287765,1760470246767,-500.0,0.00016438,2]
[391287766,1760470246776,-500.0,0.00016438,2]
[391287767,1760470246785,-500.0,0.00016438,2]
[391287768,1760470246794,-538.12,0.00016438,2]
[391287769,1760470246803,-500.0,0.00016438,2]
[391287770,1760470246812,-500.0,0.00016438,2]
[391287771,1760470246821,-1061.26,0.00016438,2]
[391287772,1760470246831,-500.0,0.00016438,2]
[391287773,1760470246841,-151.0,0.00016438,2]
[391287774,1760470246850,-151.0,0.00016438,2]
[391287775,1760470246859,-500.0,0.00016438,2]
[391287776,1760470246868,-151.0,0.00016438,2]
[391287777,1760470246878,-500.0,0.00016438,2]
[391287778,1760470246887,-618.58,0.00016438,2]
[391287779,1760470246897,-500.0,0.00016438,2]
[391287780,1760470246906,-500.0,0.00016438,2]
[391287781,1760470246915,-500.0,0.00016438,2]
[391287782,1760470246925,-500.0,0.00016438,2]
[391287783,1760470246934,-500.0,0.00016438,2]
[391287784,1760470246943,-500.0,0.00016438,2]
[391287785,1760470246953,-500.0,0.00016438,2]
[391287786,1760470246962,-500.0,0.00016438,2]
[391287787,1760470246971,-1128.82,0.00016438,2]
[391287788,1760470246980,-500.0,0.00016438,2]
[391287789,1760470246990,-669.16,0.00016438,2]
[391287790,1760470246998,-500.0,0.00016438,2]
[391287791,1760470247008,-500.0,0.00016438,2]
[391287792,1760470247018,-500.0,0.00016438,2]
[391287793,1760470247027,-504.62,0.00016438,2]
[391287794,1760470247036,-550.48,0.00016438,2]
[391287795,1760470247046,-1443.49,0.00016438,2]
[391287796,1760470247055,-500.0,0.00016438,2]
[391287797,1760470247065,-500.0,0.00016438,2]
[391287798,1760470247074,-500.0,0.00016438,2]
[391287799,1760470247083,-1481.44,0.00016438,2]
[391287800,1760470247096,-500.0,0.00016438,2]
[391287801,1760470247105,-1472.05,0.00016438,2]
[391287802,1760470247114,-500.0,0.00016438,2]
[391287803,1760470247124,-500.0,0.00016438,2]
[391287804,1760470247133,-1579.46,0.00016438,2]
[391287805,1760470247142,-500.0,0.00016438,2]
[391287806,1760470247151,-500.0,0.00016438,2]
[391287807,1760470247160,-500.0,0.00016438,2]
[391287808,1760470247170,-536.91,0.00016438,2]
[391287809,1760470247179,-1231.16,0.00016438,2]
[391287810,1760470247189,-976.88,0.00016438,2]
[391287811,1760470247199,-500.0,0.00016438,2]